[Event "Live Chess"]
[Site "Chess.com"]
[Date "2023.05.20"]
[Round "-"]
[White "ProfPoisson"]
[Black "OSmith06"]
[Result "0-1"]
[WhiteElo "1059"]
[BlackElo "1660"]
[TimeControl "300"]
[EndTime "12:49:48 PDT"]
[Termination "OSmith06 won by resignation"]

1. e4 {[%clk 0:04:56]} 1... c6 {[%clk 0:04:59]} 2. d4 {[%clk 0:04:52.6]} 2... d5
{[%clk 0:04:58.9]} 3. exd5 {[%clk 0:04:49.9]} 3... cxd5 {[%clk 0:04:58.8]} 4. c4
{[%clk 0:04:47.3]} 4... dxc4 {[%clk 0:04:57.2]} 5. Bxc4 {[%clk 0:04:43.6]} 5...
Nf6 {[%clk 0:04:54.7]} 6. Nf3 {[%clk 0:04:29.2]} 6... Bg4 {[%clk 0:04:51.8]} 7.
Qb3 {[%clk 0:04:24.8]} 7... e6 {[%clk 0:04:34.5]} 8. Qxb7 {[%clk 0:04:19.4]}
8... Nbd7 {[%clk 0:04:23.1]} 9. Nc3 {[%clk 0:03:47.6]} 9... Bb4 {[%clk
0:04:13.3]} 10. O-O {[%clk 0:03:39.7]} 10... Bxc3 {[%clk 0:04:08]} 11. bxc3
{[%clk 0:03:36.9]} 11... O-O {[%clk 0:03:58.5]} 12. Ne5 {[%clk 0:03:30.6]} 12...
Nxe5 {[%clk 0:03:49.4]} 13. dxe5 {[%clk 0:03:27.9]} 13... Nd7 {[%clk 0:03:34.8]}
14. f3 {[%clk 0:03:12.4]} 14... Nxe5 {[%clk 0:03:27]} 15. fxg4 {[%clk
0:03:04.4]} 15... Nxc4 {[%clk 0:03:25.8]} 16. Rd1 {[%clk 0:02:44.4]} 16... Qxd1+
{[%clk 0:03:22.8]} 0-1

[Event "Live Chess"]
[Site "Chess.com"]
[Date "2023.05.20"]
[Round "-"]
[White "Ocelot32"]
[Black "OleksiyJr1"]
[Result "0-1"]
[WhiteElo "1348"]
[BlackElo "957"]
[TimeControl "300"]
[EndTime "12:49:50 PDT"]
[Termination "OleksiyJr1 won by checkmate"]

1. e4 {[%clk 0:04:55]} 1... c5 {[%clk 0:04:46.9]} 2. Nf3 {[%clk 0:04:52.6]} 2...
Nc6 {[%clk 0:04:46.8]} 3. c3 {[%clk 0:04:51.6]} 3... d6 {[%clk 0:04:46.4]} 4. d4
{[%clk 0:04:47.9]} 4... cxd4 {[%clk 0:04:44.6]} 5. cxd4 {[%clk 0:04:47]} 5... e5
{[%clk 0:04:44.2]} 6. d5 {[%clk 0:04:45]} 6... Nce7 {[%clk 0:04:40.6]} 7. Nc3
{[%clk 0:04:43.1]} 7... Nf6 {[%clk 0:04:39.7]} 8. Bd3 {[%clk 0:04:41.4]} 8...
Bg4 {[%clk 0:04:38.9]} 9. Be2 {[%clk 0:04:38.6]} 9... g6 {[%clk 0:04:29.1]} 10.
O-O {[%clk 0:04:37.6]} 10... Bg7 {[%clk 0:04:25.5]} 11. h3 {[%clk 0:04:37.2]}
11... Bxf3 {[%clk 0:04:24.2]} 12. Bxf3 {[%clk 0:04:35.8]} 12... O-O {[%clk
0:04:23.6]} 13. Be3 {[%clk 0:04:26.2]} 13... Nd7 {[%clk 0:04:16.8]} 14. b4
{[%clk 0:04:20.3]} 14... b6 {[%clk 0:04:10.5]} 15. a3 {[%clk 0:04:10.8]} 15...
a5 {[%clk 0:03:35.8]} 16. Qd2 {[%clk 0:04:03.9]} 16... axb4 {[%clk 0:03:29.6]}
17. axb4 {[%clk 0:04:01.8]} 17... Rxa1 {[%clk 0:03:27.9]} 18. Rxa1 {[%clk
0:04:00.3]} 18... Nc8 {[%clk 0:03:26.9]} 19. Bg4 {[%clk 0:03:58]} 19... h5
{[%clk 0:03:14.2]} 20. Bxd7 {[%clk 0:03:55.5]} 20... Qxd7 {[%clk 0:03:12.2]} 21.
Bh6 {[%clk 0:03:51.6]} 21... f5 {[%clk 0:03:09.1]} 22. Bxg7 {[%clk 0:03:49.4]}
22... Kxg7 {[%clk 0:03:09]} 23. Qe3 {[%clk 0:03:42.6]} 23... f4 {[%clk
0:02:26.2]} 24. Qf3 {[%clk 0:03:30.6]} 24... Na7 {[%clk 0:02:13.9]} 25. h4
{[%clk 0:03:21.7]} 25... Nb5 {[%clk 0:02:11.3]} 26. Nxb5 {[%clk 0:03:19.2]}
26... Qxb5 {[%clk 0:02:11.2]} 27. Ra7+ {[%clk 0:03:18.1]} 27... Rf7 {[%clk
0:02:08.2]} 28. Qa3 {[%clk 0:03:10.1]} 28... Qc4 {[%clk 0:01:53.3]} 29. Rxf7+
{[%clk 0:03:06.3]} 29... Kxf7 {[%clk 0:01:51.9]} 30. Qa7+ {[%clk 0:03:05.6]}
30... Ke8 {[%clk 0:01:50.8]} 31. Qxb6 {[%clk 0:02:59.3]} 31... Qxe4 {[%clk
0:01:49.4]} 32. Qc6+ {[%clk 0:02:56.4]} 32... Ke7 {[%clk 0:01:43.4]} 33. b5
{[%clk 0:02:54.5]} 33... Qe1+ {[%clk 0:01:38.3]} 34. Kh2 {[%clk 0:02:53.5]}
34... Qxf2 {[%clk 0:01:37.3]} 35. b6 {[%clk 0:02:52.1]} 35... e4 {[%clk
0:01:36.2]} 36. b7 {[%clk 0:02:49.1]} 36... Qg3+ {[%clk 0:01:35.4]} 37. Kg1
{[%clk 0:02:47.7]} 37... Qf2+ {[%clk 0:01:34.4]} 38. Kh1 {[%clk 0:02:46.3]}
38... Qxh4+ {[%clk 0:01:29]} 39. Kg1 {[%clk 0:02:44.4]} 39... Qe1+ {[%clk
0:01:26.9]} 40. Kh2 {[%clk 0:02:42.6]} 40... Qg3+ {[%clk 0:01:21.2]} 41. Kg1
{[%clk 0:02:40.6]} 41... f3 {[%clk 0:01:13.2]} 42. Qc7+ {[%clk 0:02:37.6]} 42...
Kf6 {[%clk 0:01:10.4]} 43. Qd8+ {[%clk 0:02:35.1]} 43... Ke5 {[%clk 0:01:08.9]}
44. Qe8+ {[%clk 0:02:23.5]} 44... Kf4 {[%clk 0:00:54.7]} 45. Qf7+ {[%clk
0:02:17.1]} 45... Ke3 {[%clk 0:00:50.5]} 46. b8=Q {[%clk 0:01:36.5]} 46... Qxg2#
{[%clk 0:00:47.8]} 0-1

[Event "Live Chess"]
[Site "Chess.com"]
[Date "2023.05.20"]
[Round "-"]
[White "therealab0ne"]
[Black "NatashaRegan"]
[Result "0-1"]
[WhiteElo "701"]
[BlackElo "1813"]
[TimeControl "300"]
[EndTime "12:49:51 PDT"]
[Termination "NatashaRegan won on time"]

1. e4 {[%clk 0:04:58.3]} 1... Nf6 {[%clk 0:04:57.4]} 2. Nc3 {[%clk 0:04:55]}
2... e5 {[%clk 0:04:55.1]} 3. Bc4 {[%clk 0:04:48.8]} 3... Be7 {[%clk 0:04:52.1]}
4. d3 {[%clk 0:04:42.5]} 4... c6 {[%clk 0:04:48.5]} 5. Nf3 {[%clk 0:04:15.5]}
5... d6 {[%clk 0:04:34.2]} 6. Bg5 {[%clk 0:04:06.2]} 6... O-O {[%clk 0:04:30.6]}
7. O-O {[%clk 0:04:01.6]} 7... d5 {[%clk 0:04:20.4]} 8. exd5 {[%clk 0:03:59.8]}
8... cxd5 {[%clk 0:04:19.5]} 9. Bxf6 {[%clk 0:03:49.3]} 9... Bxf6 {[%clk
0:04:10.5]} 10. Nxd5 {[%clk 0:03:35.9]} 10... Nc6 {[%clk 0:04:04.8]} 11. Re1
{[%clk 0:03:23.2]} 11... Bg4 {[%clk 0:04:00.1]} 12. h3 {[%clk 0:03:00.1]} 12...
Bh5 {[%clk 0:03:50.1]} 13. Nc3 {[%clk 0:01:56.1]} 13... Qd7 {[%clk 0:03:24.4]}
14. Ne2 {[%clk 0:01:52.7]} 14... Bxf3 {[%clk 0:03:20.4]} 15. gxf3 {[%clk
0:01:29]} 15... Qxh3 {[%clk 0:03:18.2]} 16. Ng3 {[%clk 0:01:24.4]} 16... Nd4
{[%clk 0:03:14.4]} 17. Re4 {[%clk 0:00:58.4]} 17... Bh4 {[%clk 0:03:05.2]} 18.
Rxd4 {[%clk 0:00:14.3]} 18... exd4 {[%clk 0:03:00]} 19. Qf1 {[%clk 0:00:08]}
19... Qxf1+ {[%clk 0:02:54.5]} 20. Nxf1 {[%clk 0:00:07]} 20... Rfe8 {[%clk
0:02:52.1]} 0-1

[Event "Live Chess"]
[Site "Chess.com"]
[Date "2023.05.20"]
[Round "-"]
[White "ViktorTheCoolBoy"]
[Black "Horseymobile"]
[Result "0-1"]
[WhiteElo "2508"]
[BlackElo "1202"]
[TimeControl "300"]
[EndTime "12:49:59 PDT"]
[Termination "Horseymobile won by checkmate"]

1. Nf3 {[%clk 0:04:58.5]} 1... d5 {[%clk 0:04:58.8]} 2. e3 {[%clk 0:04:57.1]}
2... g6 {[%clk 0:04:55.5]} 3. c4 {[%clk 0:04:55.8]} 3... Bg7 {[%clk 0:04:50.1]}
4. cxd5 {[%clk 0:04:54.7]} 4... Nf6 {[%clk 0:04:49.7]} 5. Be2 {[%clk 0:04:50.9]}
5... O-O {[%clk 0:04:47.8]} 6. O-O {[%clk 0:04:50.2]} 6... Nxd5 {[%clk
0:04:44.2]} 7. Nc3 {[%clk 0:04:49.4]} 7... e6 {[%clk 0:04:37.9]} 8. d4 {[%clk
0:04:47.2]} 8... Nc6 {[%clk 0:04:35.5]} 9. a3 {[%clk 0:04:43.6]} 9... a6 {[%clk
0:04:18.8]} 10. Qc2 {[%clk 0:04:40.1]} 10... Re8 {[%clk 0:04:07.1]} 11. Ne4
{[%clk 0:04:36.8]} 11... e5 {[%clk 0:03:56.2]} 12. dxe5 {[%clk 0:04:32.3]} 12...
Nxe5 {[%clk 0:03:48.9]} 13. Rd1 {[%clk 0:04:30.7]} 13... Bf5 {[%clk 0:03:42.4]}
14. Nd4 {[%clk 0:04:29.5]} 14... Bxe4 {[%clk 0:03:21.5]} 15. Qxe4 {[%clk
0:04:27.8]} 15... Nf6 {[%clk 0:02:41.6]} 16. Qc2 {[%clk 0:04:24.8]} 16... Qe7
{[%clk 0:02:33.7]} 17. b4 {[%clk 0:04:21.2]} 17... Rad8 {[%clk 0:02:29.3]} 18.
Bb2 {[%clk 0:04:20.3]} 18... Neg4 {[%clk 0:02:23]} 19. h3 {[%clk 0:04:10]} 19...
Nxf2 {[%clk 0:02:14.6]} 20. Kxf2 {[%clk 0:04:08.6]} 20... Qxe3+ {[%clk
0:02:13.5]} 21. Kf1 {[%clk 0:04:06.1]} 21... Ne4 {[%clk 0:02:01.9]} 22. Bf3
{[%clk 0:03:54.9]} 22... Ng3# {[%clk 0:01:50.4]} 0-1

[Event "Live Chess"]
[Site "Chess.com"]
[Date "2023.05.20"]
[Round "-"]
[White "seabuck"]
[Black "Bob2pen"]
[Result "1/2-1/2"]
[WhiteElo "1856"]
[BlackElo "1800"]
[TimeControl "300"]
[EndTime "12:50:01 PDT"]
[Termination "Game drawn by repetition"]

1. d4 {[%clk 0:04:58.2]} 1... Nf6 {[%clk 0:04:57.9]} 2. c4 {[%clk 0:04:57.1]}
2... c5 {[%clk 0:04:56.9]} 3. e3 {[%clk 0:04:54]} 3... g6 {[%clk 0:04:55.4]} 4.
Nc3 {[%clk 0:04:52.5]} 4... Bg7 {[%clk 0:04:54.3]} 5. Nf3 {[%clk 0:04:51.7]}
5... O-O {[%clk 0:04:53.1]} 6. Be2 {[%clk 0:04:50.8]} 6... d5 {[%clk 0:04:52]}
7. O-O {[%clk 0:04:44.5]} 7... dxc4 {[%clk 0:04:49.5]} 8. Bxc4 {[%clk
0:04:42.3]} 8... cxd4 {[%clk 0:04:48.1]} 9. Nxd4 {[%clk 0:04:40.6]} 9... Nbd7
{[%clk 0:04:44.6]} 10. Qe2 {[%clk 0:04:34.2]} 10... a6 {[%clk 0:04:42.3]} 11.
Rd1 {[%clk 0:04:32.5]} 11... Qc7 {[%clk 0:04:40.8]} 12. Bb3 {[%clk 0:04:24.6]}
12... Nc5 {[%clk 0:04:31.9]} 13. Bd2 {[%clk 0:04:17.3]} 13... Nxb3 {[%clk
0:04:29.8]} 14. Nxb3 {[%clk 0:04:15.7]} 14... Be6 {[%clk 0:04:26.8]} 15. Nd4
{[%clk 0:04:10.9]} 15... Bc4 {[%clk 0:04:24.3]} 16. Qf3 {[%clk 0:04:05.7]} 16...
Rfd8 {[%clk 0:04:16.1]} 17. Rac1 {[%clk 0:04:02.3]} 17... Qb6 {[%clk 0:04:01.9]}
18. b3 {[%clk 0:03:55.5]} 18... Bd5 {[%clk 0:03:47]} 19. Nxd5 {[%clk 0:03:52.6]}
19... Nxd5 {[%clk 0:03:45.2]} 20. Be1 {[%clk 0:03:38.8]} 20... e6 {[%clk
0:03:40.6]} 21. h3 {[%clk 0:03:33.5]} 21... Rac8 {[%clk 0:03:39.3]} 22. Qe4
{[%clk 0:03:20.4]} 22... Nf6 {[%clk 0:03:21.2]} 23. Qf3 {[%clk 0:03:04.6]} 23...
Nd5 {[%clk 0:03:15.7]} 24. Qe4 {[%clk 0:02:57.8]} 24... Nf6 {[%clk 0:03:12.4]}
25. Qf3 {[%clk 0:02:55.3]} 25... Nd5 {[%clk 0:03:10.1]} 1/2-1/2

[Event "Live Chess"]
[Site "Chess.com"]
[Date "2023.05.20"]
[Round "-"]
[White "DenDenTie"]
[Black "wadsy27"]
[Result "0-1"]
[WhiteElo "689"]
[BlackElo "2558"]
[TimeControl "300"]
[EndTime "12:50:07 PDT"]
[Termination "wadsy27 won by checkmate"]

1. e4 {[%clk 0:04:54.2]} 1... e6 {[%clk 0:04:58.3]} 2. Nf3 {[%clk 0:04:50.9]}
2... d5 {[%clk 0:04:58.2]} 3. exd5 {[%clk 0:04:48.9]} 3... exd5 {[%clk
0:04:56.8]} 4. d4 {[%clk 0:04:48.7]} 4... Nc6 {[%clk 0:04:55.2]} 5. Nc3 {[%clk
0:04:48.3]} 5... Nf6 {[%clk 0:04:52.6]} 6. Bb5 {[%clk 0:04:47.8]} 6... Bd6
{[%clk 0:04:48.5]} 7. Bf4 {[%clk 0:04:47.1]} 7... Bxf4 {[%clk 0:04:47]} 8. Qd3
{[%clk 0:04:45.5]} 8... O-O {[%clk 0:04:45.2]} 9. O-O {[%clk 0:04:44.6]} 9... a6
{[%clk 0:04:41.3]} 10. Bxc6 {[%clk 0:04:42.8]} 10... bxc6 {[%clk 0:04:41.2]} 11.
Rfe1 {[%clk 0:04:38.1]} 11... Bd6 {[%clk 0:04:38.5]} 12. Ne5 {[%clk 0:04:35.7]}
12... Bxe5 {[%clk 0:04:24.7]} 13. dxe5 {[%clk 0:04:34.2]} 13... Ne4 {[%clk
0:04:24]} 14. Nxe4 {[%clk 0:04:32.5]} 14... dxe4 {[%clk 0:04:23.9]} 15. Qxd8
{[%clk 0:04:31]} 15... Rxd8 {[%clk 0:04:22.7]} 16. Rxe4 {[%clk 0:04:30.6]} 16...
Rd2 {[%clk 0:04:18]} 17. Rc1 {[%clk 0:04:26.3]} 17... Be6 {[%clk 0:04:15.1]} 18.
Kf1 {[%clk 0:04:08.6]} 18... Rad8 {[%clk 0:04:13.7]} 19. Ree1 {[%clk 0:04:05.2]}
19... g5 {[%clk 0:04:09.7]} 20. h3 {[%clk 0:03:58.7]} 20... Kg7 {[%clk
0:04:08.1]} 21. g4 {[%clk 0:03:57.4]} 21... Kg6 {[%clk 0:04:06.3]} 22. Kg2
{[%clk 0:03:56.3]} 22... h5 {[%clk 0:04:04.9]} 23. gxh5+ {[%clk 0:03:52.8]}
23... Kxh5 {[%clk 0:04:04.8]} 24. Kg3 {[%clk 0:03:51.9]} 24... Kg6 {[%clk
0:04:01.9]} 25. h4 {[%clk 0:03:41.6]} 25... gxh4+ {[%clk 0:03:57.9]} 26. Kxh4
{[%clk 0:03:40.5]} 26... Rxf2 {[%clk 0:03:54.2]} 27. Rg1+ {[%clk 0:03:39.1]}
27... Kf5 {[%clk 0:03:53.4]} 28. Rg5+ {[%clk 0:03:35.8]} 28... Kf4 {[%clk
0:03:51.2]} 29. c4 {[%clk 0:03:03.1]} 29... Rh2# {[%clk 0:03:49.1]} 0-1

[Event "Live Chess"]
[Site "Chess.com"]
[Date "2023.05.20"]
[Round "-"]
[White "JanMur7"]
[Black "ramses-IIG"]
[Result "1-0"]
[WhiteElo "1948"]
[BlackElo "825"]
[TimeControl "300"]
[EndTime "12:50:11 PDT"]
[Termination "JanMur7 won by checkmate"]

1. e4 {[%clk 0:04:58.5]} 1... d5 {[%clk 0:04:59.9]} 2. exd5 {[%clk 0:04:57.7]}
2... Qxd5 {[%clk 0:04:59.8]} 3. Nc3 {[%clk 0:04:57.1]} 3... Qe6+ {[%clk
0:04:59.7]} 4. Be2 {[%clk 0:04:55.8]} 4... Qg6 {[%clk 0:04:59.6]} 5. Nf3 {[%clk
0:04:54.6]} 5... Qxg2 {[%clk 0:04:57.8]} 6. Rg1 {[%clk 0:04:53.9]} 6... Qh3
{[%clk 0:04:57.1]} 7. d4 {[%clk 0:04:52.4]} 7... c6 {[%clk 0:04:55.1]} 8. d5
{[%clk 0:04:50.9]} 8... e6 {[%clk 0:04:50]} 9. dxc6 {[%clk 0:04:49.2]} 9... Nxc6
{[%clk 0:04:48.4]} 10. Bg5 {[%clk 0:04:46.6]} 10... f6 {[%clk 0:04:45.6]} 11.
Be3 {[%clk 0:04:43.7]} 11... Qf5 {[%clk 0:04:40.9]} 12. Nb5 {[%clk 0:04:41.3]}
12... Rb8 {[%clk 0:03:56]} 13. Nc7+ {[%clk 0:04:35.5]} 13... Kf7 {[%clk
0:03:55.1]} 14. c3 {[%clk 0:04:19.4]} 14... e5 {[%clk 0:03:22.4]} 15. Bc4+
{[%clk 0:04:09.5]} 15... Ke7 {[%clk 0:03:10]} 16. Bc5# {[%clk 0:04:04.7]} 1-0

[Event "Live Chess"]
[Site "Chess.com"]
[Date "2023.05.20"]
[Round "-"]
[White "friarnator"]
[Black "BillythekidFellowes"]
[Result "0-1"]
[WhiteElo "1997"]
[BlackElo "2030"]
[TimeControl "300"]
[EndTime "12:50:17 PDT"]
[Termination "BillythekidFellowes won by checkmate"]

1. d4 {[%clk 0:04:57.4]} 1... e6 {[%clk 0:04:58.7]} 2. Nc3 {[%clk 0:04:55.9]}
2... Nf6 {[%clk 0:04:57.3]} 3. Bf4 {[%clk 0:04:54.4]} 3... Nc6 {[%clk
0:04:55.7]} 4. Nf3 {[%clk 0:04:47.2]} 4... Bb4 {[%clk 0:04:53.7]} 5. e3 {[%clk
0:04:44]} 5... O-O {[%clk 0:04:50.1]} 6. Bd3 {[%clk 0:04:41.9]} 6... Nd5 {[%clk
0:04:48.9]} 7. Qd2 {[%clk 0:04:37.7]} 7... Nxf4 {[%clk 0:04:45.7]} 8. exf4
{[%clk 0:04:36.3]} 8... Qf6 {[%clk 0:04:44.6]} 9. O-O {[%clk 0:04:33.1]} 9...
Kh8 {[%clk 0:04:10.6]} 10. Ne4 {[%clk 0:04:10.8]} 10... Bxd2 {[%clk 0:04:05.2]}
11. Nxf6 {[%clk 0:04:08]} 11... Bxf4 {[%clk 0:04:02.1]} 12. Nxh7 {[%clk
0:04:05.2]} 12... Re8 {[%clk 0:03:51.9]} 13. g3 {[%clk 0:03:59.4]} 13... Bh6
{[%clk 0:03:47.7]} 14. Nhg5 {[%clk 0:03:57.9]} 14... Bxg5 {[%clk 0:03:44.8]} 15.
Nxg5 {[%clk 0:03:57.8]} 15... f6 {[%clk 0:03:40.7]} 16. Bg6 {[%clk 0:03:50.3]}
16... Re7 {[%clk 0:03:33.7]} 17. Nf3 {[%clk 0:03:45.8]} 17... b6 {[%clk
0:03:31.7]} 18. c3 {[%clk 0:03:43.7]} 18... Bb7 {[%clk 0:03:29.8]} 19. Rfe1
{[%clk 0:03:41.6]} 19... d6 {[%clk 0:03:15.3]} 20. Nh4 {[%clk 0:03:35.4]} 20...
Kg8 {[%clk 0:03:08.9]} 21. Be4 {[%clk 0:03:27.4]} 21... Na5 {[%clk 0:03:00]} 22.
d5 {[%clk 0:03:07.9]} 22... Nc4 {[%clk 0:02:09.5]} 23. dxe6 {[%clk 0:03:05.7]}
23... Bxe4 {[%clk 0:02:02.1]} 24. Rxe4 {[%clk 0:03:03.6]} 24... d5 {[%clk
0:02:00.2]} 25. Re2 {[%clk 0:02:54.8]} 25... Rae8 {[%clk 0:01:54.4]} 26. Rae1
{[%clk 0:02:54.3]} 26... Ne5 {[%clk 0:01:51.3]} 27. f4 {[%clk 0:02:50.1]} 27...
Nd3 {[%clk 0:01:50.2]} 28. Rd1 {[%clk 0:02:35.2]} 28... Nc5 {[%clk 0:01:21]} 29.
f5 {[%clk 0:02:30.9]} 29... Rd8 {[%clk 0:01:13.8]} 30. Ng6 {[%clk 0:02:27]}
30... Ree8 {[%clk 0:01:12]} 31. Red2 {[%clk 0:02:25.2]} 31... c6 {[%clk
0:01:09.4]} 32. c4 {[%clk 0:02:24.6]} 32... Ne4 {[%clk 0:01:08.1]} 33. Rd4
{[%clk 0:02:21.6]} 33... Nd6 {[%clk 0:01:05.1]} 34. g4 {[%clk 0:02:17]} 34...
Nxc4 {[%clk 0:00:59.5]} 35. e7 {[%clk 0:02:13.7]} 35... Rc8 {[%clk 0:00:51.4]}
36. R4d3 {[%clk 0:02:02.7]} 36... Nxb2 {[%clk 0:00:45.4]} 37. R1d2 {[%clk
0:01:51.5]} 37... Nxd3 {[%clk 0:00:43]} 38. Rxd3 {[%clk 0:01:51.4]} 38... Kf7
{[%clk 0:00:38.8]} 39. h4 {[%clk 0:01:43.8]} 39... Rc7 {[%clk 0:00:30.6]} 40.
Re3 {[%clk 0:01:40.8]} 40... d4 {[%clk 0:00:27.4]} 41. Re4 {[%clk 0:01:36.8]}
41... c5 {[%clk 0:00:26]} 42. Kf2 {[%clk 0:01:35.3]} 42... a5 {[%clk 0:00:18.3]}
43. g5 {[%clk 0:01:28.9]} 43... b5 {[%clk 0:00:12.4]} 44. Ke2 {[%clk 0:01:14.3]}
44... Rcxe7 {[%clk 0:00:11.9]} 45. Nxe7 {[%clk 0:01:10.9]} 45... Rxe7 {[%clk
0:00:11.8]} 46. Kd3 {[%clk 0:01:03.2]} 46... Rxe4 {[%clk 0:00:11.3]} 47. Kxe4
{[%clk 0:01:03.1]} 47... b4 {[%clk 0:00:11.2]} 48. Kd3 {[%clk 0:01:01.8]} 48...
a4 {[%clk 0:00:10.6]} 49. Kc2 {[%clk 0:00:58.7]} 49... Ke7 {[%clk 0:00:10.5]}
50. g6 {[%clk 0:00:54.7]} 50... Kd6 {[%clk 0:00:10.3]} 51. h5 {[%clk 0:00:54]}
51... Ke7 {[%clk 0:00:09.5]} 52. Kd3 {[%clk 0:00:52.9]} 52... Kf8 {[%clk
0:00:06.9]} 53. Kc2 {[%clk 0:00:51.4]} 53... c4 {[%clk 0:00:06.3]} 54. Kd2
{[%clk 0:00:49.6]} 54... b3 {[%clk 0:00:06.2]} 55. axb3 {[%clk 0:00:47.7]} 55...
axb3 {[%clk 0:00:06.1]} 56. Kd1 {[%clk 0:00:45.8]} 56... c3 {[%clk 0:00:06]} 57.
Kc1 {[%clk 0:00:45.2]} 57... b2+ {[%clk 0:00:05.9]} 58. Kc2 {[%clk 0:00:44.4]}
58... d3+ {[%clk 0:00:05.8]} 59. Kb1 {[%clk 0:00:42.8]} 59... d2 {[%clk
0:00:05.7]} 60. h6 {[%clk 0:00:40.9]} 60... d1=Q+ {[%clk 0:00:05.6]} 61. Ka2
{[%clk 0:00:39.6]} 61... b1=Q+ {[%clk 0:00:04.6]} 62. Ka3 {[%clk 0:00:38.9]}
62... Qdb3# {[%clk 0:00:04.5]} 0-1

[Event "Live Chess"]
[Site "Chess.com"]
[Date "2023.05.20"]
[Round "-"]
[White "Bot_Boy"]
[Black "xx_blindpuffin_xx"]
[Result "0-1"]
[WhiteElo "330"]
[BlackElo "2215"]
[TimeControl "300"]
[EndTime "12:50:20 PDT"]
[Termination "xx_blindpuffin_xx won on time"]

1. c4 {[%clk 0:04:55.1]} 1... e6 {[%clk 0:04:58.7]} 2. Nc3 {[%clk 0:04:52.5]}
2... d5 {[%clk 0:04:57.7]} 3. e3 {[%clk 0:04:49.8]} 3... c6 {[%clk 0:04:55]} 4.
d3 {[%clk 0:04:41]} 4... Bd6 {[%clk 0:04:53.2]} 5. Nce2 {[%clk 0:04:26.3]} 5...
f5 {[%clk 0:04:51.3]} 6. g3 {[%clk 0:04:06.3]} 6... Nf6 {[%clk 0:04:50.1]} 7.
Bg2 {[%clk 0:03:50.8]} 7... O-O {[%clk 0:04:40.9]} 8. h4 {[%clk 0:03:36.3]} 8...
Nbd7 {[%clk 0:04:31]} 9. f3 {[%clk 0:03:13]} 9... b6 {[%clk 0:04:19.7]} 10. Qc2
{[%clk 0:02:30.7]} 10... Bb7 {[%clk 0:04:11.1]} 11. Nd4 {[%clk 0:02:13.8]} 11...
Re8 {[%clk 0:04:08.7]} 12. f4 {[%clk 0:01:57.2]} 12... a6 {[%clk 0:04:05.9]} 13.
Nde2 {[%clk 0:01:52.3]} 13... c5 {[%clk 0:04:03.6]} 14. Nh3 {[%clk 0:01:33.7]}
14... Qc7 {[%clk 0:04:00.7]} 15. Bf3 {[%clk 0:01:19.9]} 15... dxc4 {[%clk
0:03:59.2]} 16. dxc4 {[%clk 0:01:06.3]} 16... Bxf3 {[%clk 0:03:52.7]} 17. Rg1
{[%clk 0:00:48.1]} 17... Rad8 {[%clk 0:03:50.1]} 18. Ng5 {[%clk 0:00:28.7]}
18... Bc6 {[%clk 0:03:47.4]} 19. Bd2 {[%clk 0:00:17.6]} 19... h6 {[%clk
0:03:44.6]} 20. Nf3 {[%clk 0:00:12.1]} 20... Bxf3 {[%clk 0:03:43]} 21. Kf2
{[%clk 0:00:06.6]} 21... Be4 {[%clk 0:03:41.1]} 22. Nc3 {[%clk 0:00:04.3]} 22...
Bxc2 {[%clk 0:03:40]} 0-1

[Event "Live Chess"]
[Site "Chess.com"]
[Date "2023.05.20"]
[Round "-"]
[White "Long1968"]
[Black "YrrriKharkiv"]
[Result "0-1"]
[WhiteElo "773"]
[BlackElo "2038"]
[TimeControl "300"]
[EndTime "12:50:23 PDT"]
[Termination "YrrriKharkiv won on time"]

1. e4 {[%clk 0:04:54.8]} 1... e6 {[%clk 0:04:58.2]} 2. d4 {[%clk 0:04:50.7]}
2... d5 {[%clk 0:04:57.6]} 3. Nc3 {[%clk 0:04:47.6]} 3... Nf6 {[%clk 0:04:56]}
4. e5 {[%clk 0:04:41]} 4... Nfd7 {[%clk 0:04:54.7]} 5. f4 {[%clk 0:04:37.8]}
5... c5 {[%clk 0:04:53]} 6. Nce2 {[%clk 0:04:30.5]} 6... cxd4 {[%clk 0:04:51.2]}
7. Nxd4 {[%clk 0:04:27]} 7... Nc6 {[%clk 0:04:49.7]} 8. Ngf3 {[%clk 0:04:22.6]}
8... Bc5 {[%clk 0:04:46.8]} 9. c3 {[%clk 0:04:02.6]} 9... O-O {[%clk 0:04:38.3]}
10. b4 {[%clk 0:03:56.5]} 10... Be7 {[%clk 0:04:35.7]} 11. Ba3 {[%clk
0:03:37.3]} 11... Nxd4 {[%clk 0:04:30.8]} 12. cxd4 {[%clk 0:03:24]} 12... a5
{[%clk 0:04:30.2]} 13. Qd2 {[%clk 0:02:48]} 13... Nb6 {[%clk 0:04:15.2]} 14. Rb1
{[%clk 0:02:28.4]} 14... Nc4 {[%clk 0:04:06.1]} 15. Bxc4 {[%clk 0:02:21.4]}
15... dxc4 {[%clk 0:04:05.2]} 16. Qc3 {[%clk 0:02:04.3]} 16... b5 {[%clk
0:03:39.7]} 17. bxa5 {[%clk 0:01:48.9]} 17... Bxa3 {[%clk 0:03:37.5]} 18. Qxa3
{[%clk 0:01:45.1]} 18... Rxa5 {[%clk 0:03:36.3]} 19. Qb2 {[%clk 0:01:31]} 19...
Bb7 {[%clk 0:03:26]} 20. O-O {[%clk 0:01:03.2]} 20... Bxf3 {[%clk 0:03:21]} 21.
Rxf3 {[%clk 0:00:58.6]} 21... Qd5 {[%clk 0:03:18.7]} 22. a3 {[%clk 0:00:19.4]}
22... Rd8 {[%clk 0:03:10.6]} 23. Rd1 {[%clk 0:00:14.8]} 23... Ra7 {[%clk
0:02:59.4]} 24. Kf2 {[%clk 0:00:05.8]} 24... Rad7 {[%clk 0:02:47.6]} 0-1